bitfinex/quotes_BTCUSD_20251202
["timestamp","ask_amount","ask_price","bid_price","bid_amount"]
[1764694123753,0.05744864,90673.0,90665.0,0.04509961]
[1764694123754,0.04642,90673.0,90665.0,0.04509961]
[1764694123999,0.04642,90673.0,90672.0,0.22057526]
[1764694124197,0.01102742,90683.0,90678.0,0.23158861]
[1764694124404,0.05530006,90682.0,90678.0,0.23158861]
[1764694124521,0.05530006,90682.0,90678.0,0.01102803]
[1764694124724,0.01102754,90682.0,90677.0,0.01102815]
[1764694124934,0.22055612,90680.0,90677.0,0.23159117]
[1764694125177,0.01102827,90676.0,90670.0,0.011029]
[1764694125349,0.01102827,90676.0,90669.0,0.01102912]
[1764694125350,0.01102851,90674.0,90665.0,0.04809961]
[1764694125554,0.00047,90666.0,90650.0,0.0002]
[1764694125783,0.22059715,90663.0,90659.0,0.04038]
[1764694126094,0.31555715,90663.0,90652.0,0.04038]
[1764694126300,0.09496,90663.0,90656.0,0.0110307]
[1764694126505,0.04642,90663.0,90660.0,0.23163466]
[1764694126683,0.26701715,90663.0,90660.0,0.23163466]
[1764694126874,0.26701715,90663.0,90660.0,0.23163353]
[1764694127075,0.26701715,90663.0,90660.0,0.01103022]
[1764694127384,0.26701715,90663.0,90657.0,0.23164174]
[1764694127577,0.26701715,90663.0,90651.0,0.01103131]
[1764694127903,0.31555715,90663.0,90662.0,0.00123703]
[1764694128122,0.31555715,90663.0,90662.0,0.00523703]
[1764694128309,0.31555715,90663.0,90662.0,0.00123703]
[1764694128611,0.31555715,90663.0,90662.0,0.00423703]
[1764694128814,0.04642,90663.0,90662.0,0.00423703]
[1764694129247,0.26701715,90663.0,90662.0,0.00423703]
[1764694129880,0.31596715,90663.0,90662.0,0.00423703]
[1764694130294,0.40556715,90663.0,90662.0,0.00423703]
[1764694131244,0.40556715,90663.0,90662.0,0.00023703]
[1764694131592,0.26701715,90663.0,90662.0,0.00223703]
[1764694131810,0.31637715,90663.0,90662.0,0.00223703]
[1764694132345,0.01752,90666.0,90662.0,0.00023703]
[1764694132558,0.01752,90666.0,90665.0,0.22059229]
[1764694132904,0.01102864,90673.0,90665.0,0.22059229]
[1764694132905,0.23809349,90673.0,90670.0,0.011029]
[1764694133115,0.22057529,90672.0,90669.0,0.01102912]
[1764694133317,0.22057529,90672.0,90669.0,0.23161135]
[1764694133486,0.01102876,90672.0,90669.0,0.01102912]
[1764694133689,0.01102876,90672.0,90666.0,0.23161934]
[1764694133886,0.01752,90673.0,90668.0,0.23161179]
[1764694134053,0.01752,90673.0,90670.0,0.23160782]
[1764694134257,0.23809302,90673.0,90670.0,0.23160782]
[1764694134493,0.23809302,90673.0,90669.0,0.23161132]
[1764694134494,0.02854864,90673.0,90669.0,0.23161132]
[1764694134697,0.02854864,90673.0,90671.0,0.22057738]
[1764694134897,0.01752,90673.0,90670.0,0.011029]
[1764694135121,0.01752,90673.0,90671.0,0.22057706]
[1764694135314,0.01752,90673.0,90670.0,0.23160746]
[1764694135516,0.01752,90673.0,90672.0,0.22057526]
[1764694136344,0.04642,90685.0,90681.0,0.01102766]
[1764694136551,0.27799124,90685.0,90681.0,0.01102766]
[1764694136791,0.04642,90685.0,90683.0,0.22054612]
[1764694136970,0.04642,90685.0,90682.0,0.23157847]
[1764694137130,0.05744718,90685.0,90679.0,0.04108]
[1764694137494,0.01102742,90683.0,90679.0,0.04108]
[1764694137629,0.23157847,90682.0,90681.0,0.001]
[1764694137829,0.05744718,90685.0,90681.0,0.005]
[1764694137830,0.2779922,90685.0,90681.0,0.005]
[1764694138036,0.05744718,90685.0,90682.0,0.01102754]
[1764694138237,0.2779909,90685.0,90682.0,0.01102754]
[1764694138681,0.22054639,90684.0,90682.0,0.01102754]
[1764694138882,0.22054639,90684.0,90681.0,0.23557882]
[1764694139225,0.22054903,90683.0,90681.0,0.01402766]
[1764694139640,0.23157434,90684.0,90681.0,0.003]
[1764694139841,0.22055093,90682.0,90681.0,0.003]
[1764694139979,0.22055093,90682.0,90679.0,0.22055733]
[1764694140179,0.01102791,90679.0,90676.0,0.04108]
[1764694140408,0.01102851,90674.0,90665.0,0.23162178]
[1764694140610,0.22059715,90663.0,90662.0,0.00023703]
[1764694140822,0.22059472,90664.0,90662.0,0.00023703]
[1764694141025,0.09043,90689.0,90675.0,0.01102839]
[1764694141229,0.02910486,90701.0,90663.0,0.18724]
[1764694141230,0.13470252,90698.0,90691.0,0.22052904]
[1764694141382,0.01102438,90708.0,90697.0,0.01102572]
[1764694141587,0.01752,90704.0,90699.0,0.23153232]
[1764694141781,0.09043,90710.0,90699.0,0.23153232]
[1764694141782,0.10145414,90710.0,90700.0,0.2205065]
[1764694141988,0.02854462,90706.0,90701.0,0.01102523]
[1764694142186,0.01752,90706.0,90702.0,0.01102511]
[1764694142435,0.01102487,90704.0,90700.0,0.01102535]
[1764694142660,0.01102487,90704.0,90696.0,0.01102584]
[1764694142786,0.24903768,90706.0,90702.0,0.01102511]
[1764694142983,0.01752,90706.0,90703.0,0.01102499]
[1764694143215,0.01752,90706.0,90703.0,0.2315238]
[1764694143409,0.01752,90706.0,90698.0,0.22051077]
[1764694143410,0.02854462,90706.0,90699.0,0.01102547]
[1764694143614,0.23151976,90705.0,90702.0,0.22050186]
[1764694143815,0.02854462,90706.0,90702.0,0.22050186]
[1764694143816,0.01102462,90706.0,90703.0,0.22049938]
[1764694144068,0.22049604,90705.0,90702.0,0.01102511]
[1764694144276,0.01102511,90702.0,90693.0,0.0110262]
[1764694144429,0.01102523,90701.0,90698.0,0.0110256]
[1764694144638,0.04642,90711.0,90703.0,0.01102499]
[1764694144842,0.22047594,90713.0,90710.0,0.01102414]
[1764694145043,0.22048598,90709.0,90706.0,0.03616]
[1764694145248,0.01102426,90709.0,90706.0,0.03616]
[1764694145448,0.22049817,90704.0,90702.0,0.002]
[1764694145767,0.22049954,90704.0,90702.0,0.002]
[1764694146172,0.05889,90703.0,90702.0,0.002]
[1764694146402,0.22051283,90698.0,90694.0,0.01102608]
[1764694146576,0.1401,90703.0,90692.0,0.01102633]
[1764694146577,0.10121,90694.0,90692.0,0.22052626]
[1764694146776,0.04232,90694.0,90692.0,0.22052626]
[1764694146981,0.04232,90694.0,90671.0,0.01102888]
[1764694146982,0.01102791,90679.0,90671.0,0.01102888]
[1764694147322,0.01102888,90671.0,90666.0,0.01102949]
[1764694147490,0.01102864,90673.0,90663.0,0.04509985]
[1764694147491,0.22056639,90676.0,90670.0,0.011029]
[1764694147695,0.01102839,90675.0,90671.0,0.01102888]
[1764694147870,0.01102851,90674.0,90670.0,0.23160857]
[1764694148075,0.0110262,90693.0,90679.0,0.01102791]
[1764694148391,0.2315562,90691.0,90686.0,0.23156793]
[1764694148591,0.01102669,90689.0,90683.0,0.22054779]
[1764694148795,0.01752,90693.0,90689.0,0.22053355]
[1764694148996,0.01102645,90691.0,90685.0,0.01102718]
[1764694149200,0.22053453,90689.0,90686.0,0.23156718]
[1764694149528,0.01102657,90690.0,90687.0,0.22053645]
[1764694149719,0.23155874,90690.0,90686.0,0.01102706]
[1764694149917,0.22054544,90685.0,90682.0,0.2205509]
[1764694150149,0.22056216,90678.0,90664.0,0.01102973]
[1764694150349,0.01102827,90676.0,90673.0,0.23160092]
[1764694150506,0.23159934,90674.0,90670.0,0.011029]
[1764694150667,0.23159934,90674.0,90663.0,0.03407]
[1764694150668,0.22059396,90665.0,90652.0,0.01103119]
[1764694150881,0.22235715,90663.0,90645.0,0.01752]
[1764694151239,0.22235715,90663.0,90645.0,0.01103204]
[1764694151414,0.35723715,90663.0,90653.0,0.01103107]
[1764694151617,0.35723715,90663.0,90650.0,0.01123143]
[1764694151803,0.37922916,90663.0,90655.0,0.01103083]
[1764694152002,0.35723715,90663.0,90650.0,0.0002]
[1764694152206,0.40150967,90663.0,90650.0,0.0002]
[1764694152416,0.42350168,90663.0,90650.0,0.0002]
[1764694152992,0.42350168,90663.0,90650.0,0.01123143]
[1764694153194,0.42350168,90663.0,90650.0,0.0002]
[1764694153930,0.42350168,90663.0,90662.0,0.00631737]
[1764694154184,0.42350168,90663.0,90662.0,0.00031737]
[1764694154523,0.42350168,90663.0,90662.0,0.00231737]
[1764694155781,0.42350168,90663.0,90662.0,0.00031737]
[1764694156146,0.40150967,90663.0,90662.0,0.00131737]
[1764694156389,0.44102168,90663.0,90662.0,0.00131737]
[1764694157461,0.41902967,90663.0,90662.0,0.00031737]
[1764694157820,0.44102168,90663.0,90662.0,0.00031737]
[1764694159095,0.41902967,90663.0,90662.0,0.00131737]
[1764694159279,0.44102168,90663.0,90662.0,0.00131737]
[1764694159627,0.24261836,90651.0,90650.0,0.0002]
[1764694159827,0.31902836,90651.0,90650.0,0.0002]
[1764694159960,0.41158836,90651.0,90650.0,0.0002]
[1764694161411,0.52113936,90651.0,90650.0,0.0002]
[1764694161758,0.2426427,90641.0,90640.0,0.0004]
[1764694161973,0.29273522,90641.0,90640.0,0.0004]
[1764694162151,0.38529522,90641.0,90640.0,0.0004]
[1764694163307,0.38529522,90641.0,90640.0,0.0014]
[1764694164928,0.36330321,90641.0,90640.0,0.0014]
[1764694165117,0.14265252,90641.0,90640.0,0.0014]
[1764694165313,0.16017252,90641.0,90640.0,0.0014]
[1764694165559,0.18216453,90641.0,90640.0,0.0014]
[1764694165988,0.16017252,90641.0,90640.0,0.0014]
[1764694166169,0.40281522,90641.0,90640.0,0.0014]
[1764694169275,0.24266705,90631.0,90630.0,0.0002]
[1764694169501,0.41110705,90631.0,90630.0,0.0002]
[1764694171292,0.41110705,90631.0,90630.0,0.0022]
[1764694171699,0.41110705,90631.0,90630.0,0.00314842]
[1764694172139,0.39358705,90631.0,90630.0,0.00314842]
[1764694172340,0.38911504,90631.0,90630.0,0.00314842]
[1764694172552,0.37159504,90631.0,90630.0,0.00314842]
[1764694172795,0.16844,90631.0,90630.0,0.00314842]
[1764694172942,0.38911504,90631.0,90630.0,0.00314842]
[1764694173363,0.27903504,90631.0,90630.0,0.00314842]
[1764694174477,0.05836,90631.0,90630.0,0.00314842]
[1764694174679,0.22064155,90645.0,90630.0,0.00314842]
[1764694174680,0.04427252,90641.0,90636.0,0.01103314]
[1764694175203,0.27595818,90641.0,90636.0,0.22066281]
[1764694175405,0.09057,90655.0,90650.0,0.01103143]
[1764694175606,0.09057,90655.0,90647.0,0.0110318]
[1764694175607,0.02855095,90654.0,90649.0,0.01103156]
[1764694175822,0.01103119,90652.0,90645.0,0.01103204]
[1764694176022,0.04427252,90649.0,90645.0,0.01103204]
[1764694176202,0.05530408,90649.0,90645.0,0.01103204]
[1764694176405,0.01752,90655.0,90651.0,0.01103131]
[1764694176761,0.01103022,90660.0,90656.0,0.0110307]
[1764694176892,0.01752,90660.0,90658.0,0.22060932]
[1764694177093,0.01102949,90666.0,90657.0,0.01103058]
[1764694177094,0.01102912,90669.0,90666.0,0.01102949]
[1764694177344,0.01102912,90669.0,90665.0,0.2205905]
[1764694177345,0.07282152,90670.0,90665.0,0.01102961]
[1764694177548,0.01102912,90669.0,90665.0,0.01102961]
[1764694177757,0.26236515,90673.0,90665.0,0.01102961]
[1764694177758,0.04179,90673.0,90668.0,0.22058362]
[1764694177923,0.01102876,90672.0,90668.0,0.22058362]
[1764694178130,0.01752,90675.0,90668.0,0.22058362]
[1764694178131,0.01752,90675.0,90671.0,0.22057769]
[1764694178334,0.01102706,90686.0,90678.0,0.01102803]
[1764694178335,0.22055058,90683.0,90678.0,0.01102803]
[1764694178531,0.02854718,90685.0,90679.0,0.23158511]
[1764694178734,0.04427252,90684.0,90681.0,0.22055089]
[1764694179049,0.04427252,90684.0,90676.0,0.01102827]
[1764694179050,0.01102827,90676.0,90670.0,0.011029]
[1764694179251,0.01102815,90677.0,90671.0,0.23160535]
[1764694179479,0.23159235,90677.0,90672.0,0.23160285]
[1764694179638,0.23159568,90676.0,90672.0,0.01102876]
[1764694179841,0.22057134,90674.0,90672.0,0.00011485]
[1764694180047,0.01102839,90675.0,90672.0,0.00011485]
[1764694180389,0.26236134,90674.0,90672.0,0.00011485]
[1764694180535,0.26236134,90674.0,90672.0,0.00111485]
[1764694180730,0.14911,90673.0,90672.0,0.00111485]
[1764694181190,0.17110201,90673.0,90672.0,0.00011485]
[1764694181535,0.2315986,90677.0,90672.0,0.00011485]
[1764694181536,0.08938,90687.0,90676.0,0.01102827]
[1764694181741,0.23158102,90681.0,90676.0,0.01102827]
[1764694181936,0.24909939,90682.0,90678.0,0.01102803]
[1764694182139,0.01102766,90681.0,90677.0,0.23159015]
[1764694182381,0.22056714,90676.0,90672.0,0.00011485]
[1764694182582,0.01102839,90675.0,90672.0,0.00011485]
[1764694182898,0.23159541,90676.0,90672.0,0.01114361]
[1764694183050,0.2315976,90675.0,90672.0,0.00011485]
[1764694183252,0.01102839,90675.0,90672.0,0.00011485]
[1764694183453,0.23159735,90675.0,90672.0,0.00011485]
[1764694183640,0.01102803,90678.0,90673.0,0.01102864]
[1764694183847,0.22057039,90674.0,90672.0,0.00111485]
[1764694184056,0.22057039,90674.0,90672.0,0.00011485]
[1764694184510,0.22057039,90674.0,90672.0,0.00111485]
[1764694184706,0.23159717,90675.0,90672.0,0.00111485]
[1764694184914,0.23159447,90676.0,90672.0,0.22168948]
[1764694185093,0.04179,90677.0,90672.0,0.00111485]
[1764694185309,0.04179,90677.0,90672.0,0.01514361]
[1764694185492,0.04179,90677.0,90674.0,0.01102851]
[1764694185717,0.22056624,90676.0,90674.0,0.01102851]
[1764694185951,0.04179,90677.0,90675.0,0.22056796]
[1764694186647,0.01102827,90676.0,90672.0,0.01214361]
[1764694186859,0.01102827,90676.0,90672.0,0.23271846]
[1764694187062,0.23159429,90676.0,90674.0,0.001]
[1764694187978,0.22056796,90675.0,90674.0,0.001]
[1764694188124,0.36967796,90675.0,90674.0,0.001]
[1764694188325,0.36967796,90675.0,90674.0,0.003]
[1764694188536,0.36967796,90675.0,90674.0,0.002]
[1764694189080,0.22057282,90673.0,90672.0,0.00111485]
[1764694189276,0.23048282,90673.0,90672.0,0.00011485]
[1764694189484,0.31986282,90673.0,90672.0,0.00011485]
[1764694190644,0.34185483,90673.0,90672.0,0.00011485]
[1764694191482,0.31986282,90673.0,90672.0,0.00011485]
[1764694191919,0.34185483,90673.0,90672.0,0.00111485]
[1764694192065,0.34185483,90673.0,90672.0,0.00011485]
[1764694192066,0.09929,90673.0,90672.0,0.00011485]
[1764694192271,0.31986282,90673.0,90672.0,0.00011485]
[1764694192472,0.31986282,90673.0,90672.0,0.00111485]
[1764694193391,0.02743,90673.0,90672.0,0.00111485]
[1764694193555,0.24800282,90673.0,90672.0,0.00111485]
[1764694193961,0.33738282,90673.0,90672.0,0.00111485]
[1764694194416,0.33738282,90673.0,90672.0,0.00011485]
[1764694194617,0.35937483,90673.0,90672.0,0.00011485]
[1764694194824,0.35937483,90673.0,90672.0,0.00311485]
[1764694194962,0.35937483,90673.0,90672.0,0.00111485]
[1764694195163,0.33738282,90673.0,90672.0,0.00011485]
[1764694195362,0.33738282,90673.0,90672.0,0.00111485]
[1764694196064,0.35937483,90673.0,90672.0,0.00111485]
[1764694198877,0.33738282,90673.0,90672.0,0.00111485]
[1764694199459,0.24800282,90673.0,90672.0,0.00111485]
[1764694199664,0.23298414,90675.0,90672.0,0.00111485]
[1764694199665,0.001387,90675.0,90674.0,0.22057039]
[1764694199875,0.001387,90675.0,90674.0,0.27603039]
[1764694200253,0.001387,90675.0,90674.0,0.36359039]
[1764694200628,0.07108366,90728.0,90708.0,0.01102438]
[1764694200629,0.2204707,90715.0,90708.0,0.01102438]
[1764694200758,0.02199201,90719.0,90716.0,0.01102341]
[1764694200956,0.08938,90724.0,90717.0,0.01102329]
[1764694201185,0.08938,90724.0,90716.0,0.01102341]
[1764694201186,0.01752,90722.0,90716.0,0.03675]
[1764694201394,0.01752,90722.0,90705.0,0.01102475]
[1764694201395,0.01102414,90710.0,90705.0,0.01102475]
[1764694201739,0.05973,90717.0,90680.0,0.64747352]
[1764694201740,0.0528128,90721.0,90715.0,0.01102353]
[1764694201905,0.0528128,90721.0,90706.0,0.03389]
[1764694201906,0.01102292,90720.0,90713.0,0.01102377]
[1764694202136,0.01102317,90718.0,90714.0,0.01102365]
[1764694202348,0.00038307,90721.0,90719.0,0.22045905]
[1764694202560,0.00038307,90721.0,90718.0,0.23148532]
[1764694202778,0.00038307,90721.0,90716.0,0.01102341]
[1764694202779,0.22084046,90721.0,90716.0,0.01102341]
[1764694202996,0.22084046,90721.0,90715.0,0.01102353]
[1764694202997,0.00038307,90721.0,90719.0,0.22045904]
[1764694203199,0.00038307,90721.0,90706.0,0.03389]
[1764694203397,0.00038307,90721.0,90714.0,0.01102365]
[1764694203601,0.00038307,90721.0,90715.0,0.01102353]
[1764694203812,0.01102317,90718.0,90711.0,0.01102402]
[1764694204018,0.00038307,90721.0,90715.0,0.01102353]
[1764694204166,0.00038307,90721.0,90718.0,0.01102317]
[1764694204372,0.23186315,90721.0,90715.0,0.23149225]
[1764694204613,0.23186315,90721.0,90718.0,0.23148521]
[1764694204614,0.00038307,90721.0,90718.0,0.23148521]
[1764694204761,0.00038307,90721.0,90720.0,0.22045855]
[1764694205445,0.00038307,90721.0,90718.0,0.01102317]
[1764694205648,0.00038307,90721.0,90719.0,0.22045925]
[1764694205963,0.00038307,90721.0,90715.0,0.01102353]
[1764694206189,0.00038307,90721.0,90719.0,0.2204599]
[1764694206764,0.00038307,90721.0,90720.0,0.002]
[1764694207182,0.00038307,90721.0,90719.0,0.2204599]
[1764694207418,0.00038307,90721.0,90719.0,0.2224599]
[1764694207795,0.00038307,90721.0,90719.0,0.2204599]
[1764694208001,0.00038307,90721.0,90720.0,0.002]
[1764694208396,0.00038307,90721.0,90719.0,0.22045943]
[1764694208604,0.01102499,90703.0,90697.0,0.01102572]
[1764694208804,0.01102572,90697.0,90690.0,0.01102657]
[1764694209006,0.04319,90711.0,90702.0,0.01102511]
[1764694209231,0.2315192,90706.0,90700.0,0.01102535]
[1764694209426,0.04319,90711.0,90688.0,0.04491681]
[1764694209427,0.01102584,90696.0,90688.0,0.04491681]
[1764694209604,0.22053166,90690.0,90688.0,0.03389]
[1764694209806,0.22053166,90690.0,90682.0,0.01102754]
[1764694209807,0.01102766,90681.0,90677.0,0.01102815]
[1764694210029,0.22056553,90676.0,90675.0,0.03675]
[1764694210230,0.07875827,90676.0,90668.0,0.01102924]
[1764694210431,0.01102864,90673.0,90668.0,0.23161422]
[1764694210609,0.01102839,90675.0,90669.0,0.23161008]
[1764694210915,0.01752,90683.0,90680.0,0.01102779]
[1764694211172,0.23156676,90687.0,90683.0,0.01102742]
[1764694211534,0.01102706,90686.0,90683.0,0.23157491]
[1764694211730,0.01102706,90686.0,90683.0,0.01102742]
[1764694211943,0.01102706,90686.0,90671.0,0.22057587]
[1764694211944,0.04319,90696.0,90690.0,0.01102657]
[1764694212064,0.23153408,90700.0,90694.0,0.01102608]
[1764694212261,0.01102547,90699.0,90696.0,0.01102584]
[1764694212503,0.23153603,90699.0,90694.0,0.23154593]
[1764694212709,0.22051322,90698.0,90694.0,0.23154593]
[1764694212910,0.22054607,90684.0,90660.0,0.01103022]
[1764694213064,0.40718808,90684.0,90683.0,0.003]
[1764694213398,0.23806607,90684.0,90683.0,0.001]
[1764694213784,0.01102779,90680.0,90674.0,0.01102851]
[1764694213979,0.23158614,90679.0,90675.0,0.01102839]
[1764694214289,0.23158568,90680.0,90675.0,0.01102839]
[1764694214488,0.01102645,90691.0,90679.0,0.05757]
[1764694214691,0.01102669,90689.0,90684.0,0.0110273]
[1764694214886,0.02854657,90690.0,90685.0,0.23157082]
[1764694215288,0.02854669,90689.0,90684.0,0.0110273]
[1764694215494,0.01102718,90685.0,90675.0,0.01102839]
[1764694215741,0.01102718,90685.0,90677.0,0.2315908]
[1764694215742,0.23157973,90682.0,90677.0,0.2315908]
[1764694215941,0.23157973,90682.0,90678.0,0.01102803]
[1764694216143,0.01102766,90681.0,90675.0,0.23159556]
[1764694216360,0.2205433,90686.0,90675.0,0.23159556]
[1764694216361,0.26373074,90687.0,90679.0,0.01102791]
[1764694216493,1.18841132,90728.0,90597.0,0.19717868]
[1764694216494,0.02199201,90698.0,90693.0,0.22052192]
[1764694216831,0.01752,90697.0,90693.0,0.23154812]
[1764694217266,0.0110256,90698.0,90691.0,0.04777645]
[1764694217451,0.01102608,90694.0,90691.0,0.03675]
[1764694217673,0.22052552,90693.0,90691.0,0.03675]
[1764694218140,0.23156074,90689.0,90686.0,0.01102706]
[1764694218353,0.22053757,90688.0,90686.0,0.03675]
[1764694219403,0.01102754,90682.0,90679.0,0.03675]
[1764694219630,0.01102742,90683.0,90679.0,0.03675]
[1764694219840,0.0110273,90684.0,90679.0,0.03675]
[1764694220053,0.23158696,90679.0,90674.0,0.2315979]
[1764694220264,0.01102742,90683.0,90674.0,0.01102851]
[1764694220487,0.23157706,90683.0,90680.0,0.23158283]
[1764694220706,0.22054666,90684.0,90680.0,0.23158274]
[1764694220916,0.22054666,90684.0,90680.0,0.01102779]
[1764694220917,0.22054922,90683.0,90680.0,0.01102779]
[1764694221156,0.23157396,90684.0,90680.0,0.01102779]
[1764694221374,0.23157396,90684.0,90681.0,0.01102766]
[1764694221539,0.0110262,90693.0,90687.0,0.01102693]
[1764694221743,0.01102633,90692.0,90687.0,0.01102693]
[1764694221958,0.01102633,90692.0,90689.0,0.23155965]
[1764694222284,0.0110262,90693.0,90690.0,0.01102657]
[1764694222494,0.0110262,90693.0,90687.0,0.2315637]
[1764694222495,0.23155502,90692.0,90687.0,0.23156468]
[1764694222696,0.23155502,90692.0,90688.0,0.01102681]
[1764694222697,0.22052928,90691.0,90688.0,0.01102681]
[1764694222894,0.22053205,90690.0,90686.0,0.01102706]
[1764694223200,0.23156315,90688.0,90684.0,0.22054497]
[1764694223369,0.22054175,90686.0,90683.0,0.23157561]
[1764694223578,0.01102706,90686.0,90680.0,0.002]
[1764694223741,0.23155886,90690.0,90684.0,0.2315726]
[1764694223945,0.04319,90691.0,90687.0,0.23156471]
[1764694224160,0.04319,90691.0,90688.0,0.22053611]
[1764694224385,0.04319,90691.0,90689.0,0.22053347]
[1764694224586,0.23164854,90700.0,90691.0,0.22052839]
[1764694224587,0.01102596,90695.0,90691.0,0.22052839]
[1764694224743,0.23154547,90695.0,90692.0,0.22052651]
[1764694224944,0.0110256,90698.0,90689.0,0.01102669]
[1764694225148,0.22052215,90694.0,90691.0,0.22052896]
[1764694225408,0.01102596,90695.0,90691.0,0.01102645]
[1764694225656,0.22052204,90694.0,90691.0,0.01102645]
[1764694225870,0.01102584,90696.0,90692.0,0.01102633]
[1764694226368,0.01102584,90696.0,90693.0,0.0110262]
[1764694226570,0.01102547,90699.0,90696.0,0.01102584]
[1764694226770,0.22051937,90695.0,90693.0,0.22052411]
[1764694226994,0.09875131,90694.0,90671.0,0.02903]
[1764694227202,0.09875131,90694.0,90649.0,0.03389]
[1764694227203,0.01102851,90674.0,90666.0,0.01102949]
[1764694227408,0.01102912,90669.0,90663.0,0.02903]
[1764694227622,0.01102924,90668.0,90663.0,0.01102985]
[1764694227832,0.01102912,90669.0,90664.0,0.01102973]
[1764694228042,0.23160551,90672.0,90667.0,0.01102937]
[1764694228231,0.23161106,90670.0,90665.0,0.2316215]
[1764694228521,0.23161217,90669.0,90666.0,0.003]
[1764694228695,0.01102912,90669.0,90666.0,0.003]
[1764694228870,0.08881,90669.0,90666.0,0.003]
[1764694229074,0.05832,90667.0,90666.0,0.003]
[1764694229257,0.08031201,90667.0,90666.0,0.003]
[1764694229456,0.08031201,90667.0,90663.0,0.001]
[1764694229457,0.22059472,90664.0,90663.0,0.001]
[1764694229700,0.24258673,90664.0,90663.0,0.00111485]
[1764694230064,0.38971673,90664.0,90663.0,0.00411485]
[1764694230416,0.38971673,90664.0,90663.0,0.00011485]
[1764694231419,0.38971673,90664.0,90663.0,0.00111485]
[1764694232991,0.36772472,90664.0,90663.0,0.00111485]
[1764694233354,0.24260863,90655.0,90654.0,0.00023703]
[1764694233557,0.26815863,90655.0,90654.0,0.00023703]
[1764694233706,0.26815863,90655.0,90623.0,0.01103472]
[1764694233707,0.24266705,90631.0,90625.0,0.01103448]
[1764694233887,0.10785201,90631.0,90629.0,0.22067958]
[1764694234094,0.16458,90631.0,90628.0,0.23171504]
[1764694234294,0.16458,90631.0,90629.0,0.22067841]
[1764694234589,0.01752,90631.0,90629.0,0.22067841]
[1764694235955,0.01752,90631.0,90630.0,0.0022]
[1764694236717,0.01103229,90643.0,90634.0,0.01103338]
[1764694236928,0.01103326,90635.0,90632.0,0.2317054]
[1764694237143,0.01103326,90635.0,90630.0,0.0022]
[1764694237287,0.24921491,90637.0,90632.0,0.01103363]
[1764694237461,0.23169709,90636.0,90632.0,0.01103363]
[1764694237888,0.01752,90637.0,90635.0,0.22066462]
[1764694238090,0.01752,90637.0,90634.0,0.23170112]
[1764694238500,0.01752,90637.0,90634.0,0.01103338]
[1764694238705,0.01752,90637.0,90633.0,0.23170223]
[1764694238901,0.01752,90637.0,90632.0,0.01203363]
[1764694239127,0.01752,90637.0,90635.0,0.22066454]
[1764694239428,0.01752,90637.0,90634.0,0.23169995]
[1764694239644,0.22064481,90644.0,90640.0,0.23168426]
[1764694239798,0.01752,90641.0,90640.0,0.23168426]
[1764694239998,0.31542196,90650.0,90644.0,0.22064239]
[1764694240203,0.01752,90645.0,90644.0,0.22064239]
[1764694240382,0.01752,90645.0,90642.0,0.01103241]
[1764694240582,0.01699439,90645.0,90642.0,0.01103241]
[1764694240824,0.01699439,90645.0,90643.0,0.22064583]
[1764694241032,0.08376,90656.0,90654.0,0.22061873]
[1764694241230,0.01752,90658.0,90655.0,0.01103083]
[1764694241470,0.01103058,90657.0,90653.0,0.23165134]
[1764694241684,0.01752,90658.0,90655.0,0.01103083]
[1764694241905,0.24916017,90658.0,90654.0,0.23164937]
[1764694242050,0.22061473,90656.0,90653.0,0.01103107]
[1764694242392,0.23164317,90657.0,90654.0,0.01103095]
[1764694242820,0.01103058,90657.0,90655.0,0.002]
[1764694242965,0.23164168,90658.0,90655.0,0.23164528]
[1764694243168,0.23164168,90658.0,90653.0,0.001]
[1764694243169,0.05329,90656.0,90653.0,0.001]
[1764694243365,8.017e-05,90658.0,90657.0,0.22061175]
[1764694243814,8.017e-05,90658.0,90657.0,0.27530175]
[1764694244410,8.017e-05,90658.0,90656.0,0.22061372]
[1764694245756,8.017e-05,90658.0,90656.0,0.22161372]
[1764694245941,8.017e-05,90658.0,90657.0,0.002]
[1764694246240,8.017e-05,90658.0,90657.0,0.22061175]
[1764694246591,8.017e-05,90658.0,90657.0,0.27530175]
[1764694247742,8.017e-05,90658.0,90657.0,0.22061175]
[1764694248245,8.017e-05,90658.0,90657.0,0.27730175]
[1764694248448,8.017e-05,90658.0,90657.0,0.36234175]
[1764694248746,8.017e-05,90658.0,90657.0,0.22361175]
[1764694248953,0.13713017,90658.0,90657.0,0.003]
[1764694249162,8.017e-05,90658.0,90657.0,0.002]
[1764694249375,8.017e-05,90658.0,90657.0,0.27730175]
[1764694249593,8.017e-05,90658.0,90657.0,0.27630175]
[1764694249792,8.017e-05,90658.0,90657.0,0.27930175]
[1764694249940,8.017e-05,90658.0,90657.0,0.27830175]
[1764694250958,8.017e-05,90658.0,90657.0,0.35934175]
[1764694251158,8.017e-05,90658.0,90657.0,0.36034175]
[1764694251494,8.017e-05,90658.0,90657.0,0.35934175]
[1764694251639,8.017e-05,90658.0,90657.0,0.36034175]
[1764694251839,8.017e-05,90658.0,90657.0,0.36334175]
[1764694252897,8.017e-05,90658.0,90657.0,0.38533375]
[1764694254013,8.017e-05,90658.0,90657.0,0.38233375]
[1764694254592,8.017e-05,90658.0,90657.0,0.38133375]
[1764694255792,8.017e-05,90658.0,90657.0,0.35934175]
[1764694256042,8.017e-05,90658.0,90657.0,0.38133375]
[1764694256233,0.12545,90701.0,90657.0,0.38133375]
[1764694256234,0.04169,90701.0,90700.0,0.22050716]
[1764694256471,0.04177036,90701.0,90700.0,0.22050716]
[1764694257729,0.04177036,90701.0,90700.0,0.22150716]
[1764694258314,0.04177036,90701.0,90700.0,0.001]
[1764694259043,8.036e-05,90701.0,90700.0,0.22050716]
[1764694260475,8.036e-05,90701.0,90700.0,0.22150716]
[1764694260633,8.036e-05,90701.0,90700.0,0.22050716]
[1764694260843,8.036e-05,90701.0,90700.0,0.36123716]
[1764694261065,8.036e-05,90701.0,90700.0,0.36223716]
[1764694261445,8.036e-05,90701.0,90700.0,0.38422916]
[1764694261617,8.036e-05,90701.0,90700.0,0.36023716]
[1764694261815,8.036e-05,90701.0,90700.0,0.38122916]
[1764694262119,8.036e-05,90701.0,90700.0,0.36423716]
[1764694263496,8.036e-05,90701.0,90700.0,0.38622916]
[1764694264726,8.036e-05,90701.0,90700.0,0.38175716]
[1764694264930,8.036e-05,90701.0,90700.0,0.40274916]
[1764694265262,8.036e-05,90701.0,90700.0,0.38075716]
[1764694265870,8.036e-05,90701.0,90700.0,0.40274916]
[1764694266097,8.036e-05,90701.0,90700.0,0.38075716]
[1764694266255,8.036e-05,90701.0,90700.0,0.39874916]
[1764694266415,8.036e-05,90701.0,90700.0,0.37675716]
[1764694266617,8.036e-05,90701.0,90700.0,0.39874916]
[1764694267681,8.036e-05,90701.0,90700.0,0.37675716]
[1764694267898,0.00315695,90745.0,90744.0,0.22040024]
[1764694268196,0.00354047,90745.0,90744.0,0.22040024]
[1764694268398,0.00354047,90745.0,90743.0,0.22040267]